[Event "Hetauda Cup Asian Open 2023"]
[Site "Hetauda"]
[Date "2023.12.01"]
[Round "5.3"]
[White "Majumder Shrayan"]
[Black "Gurung, Rahul"]
[Result "0-1"]
[ECO "D36"]
[WhiteElo "1921"]
[BlackElo "2030"]
[Annotator "RC"]
[PlyCount "63"]
[EventDate "2023.11.28"]
[EventType "swiss"]
[EventCountry "NEP"]
[SourceTitle "playchess.com"]
[Source "ChessBase"]
[SourceQuality "1"]
[TimeControl "5400+30"]

1. d4 {[%emt 0:00:30]} d5 {[%emt 0:00:30]} 2. c4 {[%emt 0:03:51]} e6 {[%emt 0:00:00]} 3. Nc3 {[%emt 0:00:49]} Nf6 {[%emt 0:00:00]} 4. cxd5 {[%emt 0:00:30]} exd5 {[%emt 0:00:17]} 5. Bg5 {[%emt 0:00:30]} Nbd7 {[%emt 0:00:30]} 6. e3 {[%emt 0:00:30]} c6 {[%emt 0:00:30]} 7. Bd3 {[%emt 0:00:30]} Be7 {[%emt 0:00:30]} 8. Qc2 {[%emt 0:00:30]} h6 {[%emt 0:00:30]} 9. Bf4 {[%emt 0:00:30]} Nh5 {[%emt 0:00:30]} 10. Nf3 {[%emt 0:00:30]} Nxf4 {[%emt 0:00:30]} 11. exf4 {[%emt 0:00:30]} O-O {[%emt 0:00:30]} 12. O-O-O {[%emt 0:05:28]} Nf6 {[%emt 0:19:30]} 13. h3 {[%emt 0:11:41]} Bb4 {[%emt 0:05:05]} 14. Kb1 {[%emt 0:00:30]} Bxc3 {[%emt 0:00:30]} 15. Qxc3 {[%emt 0:00:30]} Ne4 {[%emt 0:00:30]} 16. Qc2 {[%emt 0:00:30]} Qf6 {[%emt 0:00:30]} 17. g3 {[%emt 0:00:30]} Bf5 {[%emt 0:00:30]} 18. Ne5 {[%emt 0:13:29]} Nd6 {[%emt 0:02:12]} 19. Ng4 {[%emt 0:00:30]} Qg6 {[%emt 0:00:30]} 20. Ne5 {[%emt 0:12:13]} Bxd3 {[%emt 0:00:30]} 21. Rxd3 {[%emt 0:00:00]} Qf5 {[%emt 0:00:30]} 22. Rdd1 {[%emt 0:02:38]} Qxc2+ {[%emt 0:00:48]} 23. Kxc2 {[%emt 0:00:30]} f6 {[%emt 0:00:30]} 24. Nd3 {[%emt 0:00:30]} Rfe8 {[%emt 0:00:30]} 25. Rhe1 {[%emt 0:00:30]} Nb5 {[%emt 0:00:30]} 26. Rxe8+ {[%emt 0:00:30]} Rxe8 {[%emt 0:00:30]} 27. Nc1 {[%emt 0:00:30]} Kf7 {[%emt 0:00:30]} 28. Kd3 {[%emt 0:00:30]} b6 {[%emt 0:00:30]} 29. Nb3 {[%emt 0:00:30]} Rc8 {[%emt 0:00:30]} 30. Nd2 {[%emt 0:00:30]} Nd6 {[%emt 0:00:30]} 31. Ke3 {[%emt 0:00:30]} Re8+ {[%emt 0:00:30]} 32. Kf3 {[%emt 0:00:30]} 0-1

[Event "Hetauda Cup Asian Open 2023"]
[Site "Hetauda"]
[Date "2023.12.02"]
[Round "6.1"]
[White "Nayem, Haque"]
[Black "Subhayan Kundu"]
[Result "1/2-1/2"]
[ECO "C58"]
[WhiteElo "2053"]
[BlackElo "2393"]
[Annotator "RC"]
[PlyCount "80"]
[EventDate "2023.11.28"]
[EventType "swiss"]
[EventCountry "NEP"]
[SourceTitle "playchess.com"]
[Source "ChessBase"]
[SourceQuality "1"]
[TimeControl "5400+30"]

1. e4 {[%emt 0:00:30]} e5 {[%emt 0:00:09]} 2. Nf3 {[%emt 0:00:00]} Nc6 3. Bc4 Nf6 {[%emt 0:00:41]} 4. Ng5 {[%emt 0:00:00]} d5 {[%emt 0:01:13]} 5. exd5 {[%emt 0:00:00]} Na5 {[%emt 0:00:15]} 6. Bb5+ {[%emt 0:00:00]} c6 {[%emt 0:00:08]} 7. dxc6 {[%emt 0:00:00]} bxc6 {[%emt 0:00:04]} 8. Bd3 {[%emt 0:00:00]} Nd5 9. Nf3 {[%emt 0:00:01]} Bd6 {[%emt 0:02:14]} 10. O-O {[%emt 0:00:30]} Nf4 {[%emt 0:00:30]} 11. Re1 {[%emt 0:00:30]} Nxd3 12. cxd3 {[%emt 0:00:37]} O-O {[%emt 0:00:00]} 13. Nc3 {[%emt 0:03:51]} Re8 {[%emt 0:00:44]} 14. Ne4 {[%emt 0:01:03]} Bf8 {[%emt 0:04:28]} 15. Ng3 {[%emt 0:06:40]} c5 {[%emt 0:01:07]} 16. Nxe5 {[%emt 0:10:25]} Bb7 {[%emt 0:00:29]} 17. Re3 {[%emt 0:00:12]} Qd5 {[%emt 0:07:06]} 18. Nf3 {[%emt 0:00:26]} c4 {[%emt 0:00:56]} 19. d4 {[%emt 0:00:27]} Nc6 {[%emt 1:19:56]} 20. d3 {[%emt 0:01:24]} Nxd4 {[%emt 0:00:30]} 21. dxc4 {[%emt 0:00:20]} Nxf3+ {[%emt 0:00:00]} 22. Qxf3 {[%emt 0:00:34]} Qd7 {[%emt 0:00:00]} 23. Qe2 {[%emt 0:04:38]} Qc6 {[%emt 0:00:00]} 24. Qf1 {[%emt 0:00:55]} Rad8 {[%emt 0:00:00]} 25. Rf3 {[%emt 0:05:01]} Qc8 {[%emt 0:00:00]} 26. Re3 {[%emt 0:13:36]} Qc6 {[%emt 0:00:00]} 27. Rf3 {[%emt 0:00:06]} Bc5 {[%emt 0:00:00]} 28. Be3 {[%emt 0:04:36]} Bxe3 {[%emt 0:00:00]} 29. Rxe3 {[%emt 0:00:02]} Rxe3 {[%emt 0:00:00]} 30. fxe3 {[%emt 0:00:02]} Rd2 {[%emt 0:00:00]} 31. e4 {[%emt 0:00:12]} h5 {[%emt 0:00:00]} 32. Rd1 {[%emt 0:09:30]} Qb6+ {[%emt 0:00:00]} 33. Kh1 {[%emt 0:00:08]} Rf2 {[%emt 0:00:00]} 34. Qd3 {[%emt 0:00:29]} Qxb2 {[%emt 0:00:00]} 35. Qd8+ {[%emt 0:00:53]} Kh7 {[%emt 0:00:00]} 36. Qg5 {[%emt 0:00:47]} g6 {[%emt 0:00:00]} 37. Nf5 gxf5 {[%emt 0:00:00]} 38. Qxh5+ {[%emt 0:00:48]} Kg7 {[%emt 0:00:00]} 39. Qg5+ {[%emt 0:00:06]} Kh7 {[%emt 0:00:00]} 40. Qh5+ {[%emt 0:00:10]} Kg7 {[%emt 0:00:00]} 1/2-1/2

[Event "Hetauda Cup Asian Open 2023"]
[Site "Hetauda"]
[Date "2023.12.02"]
[Round "6.2"]
[White "Gurung, Rahul"]
[Black "Mohammad Minhaz Uddin"]
[Result "1/2-1/2"]
[ECO "C43"]
[WhiteElo "2030"]
[BlackElo "2217"]
[Annotator "RC"]
[PlyCount "53"]
[EventDate "2023.11.28"]
[EventType "swiss"]
[EventCountry "NEP"]
[SourceTitle "playchess.com"]
[Source "ChessBase"]
[SourceQuality "1"]
[TimeControl "5400+30"]

1. e4 {[%emt 0:00:03]} e5 {[%emt 0:00:04]} 2. Nf3 {[%emt 0:00:04]} Nf6 {[%emt 0:00:07]} 3. d4 {[%emt 0:00:04]} Nxe4 {[%emt 0:00:05]} 4. dxe5 {[%emt 0:00:04]} d5 {[%emt 0:00:43]} 5. Nbd2 {[%emt 1:32:45]} Nc6 {[%emt 1:32:01]} 6. Nxe4 {[%emt 0:00:00]} dxe4 {[%emt 0:00:00]} 7. Qxd8+ {[%emt 0:00:00]} Nxd8 {[%emt 0:00:00]} 8. Nd4 {[%emt 0:00:00]} a6 {[%emt 0:00:00]} 9. Be3 {[%emt 0:00:00]} g6 {[%emt 0:00:00]} 10. Bc4 {[%emt 0:00:00]} Bg7 {[%emt 0:00:00]} 11. Bf4 {[%emt 0:00:00]} c5 {[%emt 0:00:00]} 12. Nb3 {[%emt 0:00:00]} Be6 {[%emt 0:00:00]} 13. Nd2 {[%emt 0:00:00]} b5 {[%emt 0:00:00]} 14. Bxe6 {[%emt 0:00:00]} Nxe6 {[%emt 0:00:00]} 15. Bg3 {[%emt 0:00:00]} h5 {[%emt 0:00:00]} 16. h3 {[%emt 0:00:00]} Nd4 {[%emt 0:00:00]} 17. O-O-O {[%emt 0:00:00]} e3 {[%emt 0:00:00]} 18. Ne4 {[%emt 0:00:00]} Ne2+ {[%emt 0:00:00]} 19. Kb1 {[%emt 0:07:00]} Nxg3 {[%emt 0:00:00]} 20. fxg3 {[%emt 0:00:00]} O-O {[%emt 0:00:00]} 21. Nxc5 {[%emt 0:00:00]} Bxe5 {[%emt 0:00:00]} 22. Rhe1 {[%emt 0:00:00]} Bxg3 {[%emt 0:00:00]} 23. Rxe3 {[%emt 0:00:00]} Bf2 {[%emt 0:00:00]} 24. Re5 {[%emt 0:00:00]} Bxc5 {[%emt 0:00:00]} 25. Rxc5 {[%emt 0:00:00]} Rfe8 {[%emt 0:00:00]} 26. Rcd5 {[%emt 0:00:00]} Re2 {[%emt 0:00:00]} 27. R5d2 {[%emt 0:00:00]} 1/2-1/2

[Event "Hetauda Cup Asian Open 2023"]
[Site "Hetauda"]
[Date "2023.12.02"]
[Round "7.1"]
[White "Subhayan Kundu"]
[Black "Gurung, Rahul"]
[Result "1-0"]
[ECO "B11"]
[WhiteElo "2393"]
[BlackElo "2030"]
[Annotator "RC"]
[PlyCount "31"]
[EventDate "2023.11.28"]
[EventType "swiss"]
[EventCountry "NEP"]
[SourceTitle "playchess.com"]
[Source "ChessBase"]
[SourceQuality "1"]
[TimeControl "5400+30"]

1. e4 {[%emt 0:03:46]} c6 {[%emt 0:00:02]} 2. Nc3 {[%emt 0:00:22]} d5 {[%emt 0:00:05]} 3. Nf3 {[%emt 0:00:05]} Bg4 {[%emt 0:00:05]} 4. h3 {[%emt 0:00:23]} Bxf3 {[%emt 0:00:06]} 5. Qxf3 {[%emt 0:00:04]} e6 {[%emt 0:00:09]} 6. g3 {[%emt 0:00:44]} Bd6 {[%emt 0:01:29]} 7. Bg2 {[%emt 0:03:25]} Nf6 {[%emt 0:16:16]} 8. O-O {[%emt 0:00:52]} d4 {[%emt 0:04:35]} 9. Ne2 {[%emt 0:00:29]} e5 {[%emt 0:00:15]} 10. c3 {[%emt 0:00:50]} c5 {[%emt 0:00:31]} 11. cxd4 {[%emt 0:00:05]} cxd4 {[%emt 0:00:05]} 12. Nxd4 {[%emt 0:00:05]} Bc7 {[%emt 0:11:27]} 13. Nf5 {[%emt 0:01:18]} O-O {[%emt 0:01:38]} 14. d4 {[%emt 0:00:05]} Nc6 {[%emt 0:02:05]} 15. d5 {[%emt 0:01:26]} Nb4 {[%emt 0:00:30]} 16. Bg5 {[%emt 0:00:30]} 1-0

[Event "Hetauda Cup Asian Open 2023"]
[Site "Hetauda"]
[Date "2023.12.02"]
[Round "7.2"]
[White "Mohammad Minhaz Uddin"]
[Black "Choubey Saurabh"]
[Result "1-0"]
[ECO "B33"]
[WhiteElo "2217"]
[BlackElo "1976"]
[Annotator "RC"]
[PlyCount "81"]
[EventDate "2023.11.28"]
[EventType "swiss"]
[EventCountry "NEP"]
[SourceTitle "playchess.com"]
[Source "ChessBase"]
[SourceQuality "1"]
[TimeControl "5400+30"]

1. e4 {[%emt 0:00:10]} c5 {[%emt 0:00:21]} 2. Nf3 {[%emt 0:00:07]} Nc6 {[%emt 1:31:09]} 3. d4 {[%emt 0:00:16]} cxd4 {[%emt 0:00:00]} 4. Nxd4 {[%emt 0:00:05]} Nf6 {[%emt 0:00:00]} 5. Nc3 {[%emt 0:00:04]} e5 {[%emt 0:00:00]} 6. Ndb5 {[%emt 0:00:03]} d6 {[%emt 0:00:00]} 7. Bg5 {[%emt 0:00:03]} a6 {[%emt 0:00:00]} 8. Na3 {[%emt 0:00:02]} b5 {[%emt 0:00:00]} 9. Nd5 {[%emt 0:00:03]} Be7 {[%emt 0:00:00]} 10. Bxf6 {[%emt 0:00:03]} Bxf6 {[%emt 0:00:00]} 11. c4 {[%emt 0:00:16]} b4 {[%emt 0:00:00]} 12. Nc2 {[%emt 0:00:01]} O-O {[%emt 0:00:00]} 13. h4 {[%emt 0:00:21]} g6 {[%emt 0:00:00]} 14. g3 {[%emt 0:00:04]} Be6 {[%emt 0:00:00]} 15. Qd3 {[%emt 0:01:52]} Bg7 {[%emt 0:00:00]} 16. Bg2 {[%emt 0:06:04]} Qa5 {[%emt 0:00:00]} 17. O-O {[%emt 0:00:53]} Rab8 {[%emt 0:00:00]} 18. b3 {[%emt 0:03:02]} Bxd5 {[%emt 0:00:00]} 19. cxd5 {[%emt 0:01:51]} Nd4 {[%emt 0:08:30]} 20. Nxd4 {[%emt 0:07:00]} exd4 {[%emt 0:00:00]} 21. Rfc1 {[%emt 0:01:13]} Qb5 {[%emt 0:00:00]} 22. Qxb5 {[%emt 0:22:54]} axb5 {[%emt 0:00:00]} 23. Rc6 {[%emt 0:00:04]} Rfd8 {[%emt 0:00:00]} 24. Bf1 {[%emt 0:02:57]} Rd7 {[%emt 0:00:00]} 25. Rac1 {[%emt 0:03:08]} Bf8 {[%emt 0:00:00]} 26. Ra6 {[%emt 0:02:49]} Be7 {[%emt 0:00:00]} 27. Bh3 {[%emt 0:02:43]} Rdd8 {[%emt 0:00:00]} 28. Rc7 {[%emt 0:10:36]} Bf6 {[%emt 0:00:00]} 29. Bf1 {[%emt 0:09:34]} d3 {[%emt 0:00:00]} 30. Bxd3 {[%emt 0:00:12]} Bd4 {[%emt 0:00:00]} 31. Rcc6 {[%emt 0:01:26]} Rdc8 {[%emt 0:00:00]} 32. Bxb5 {[%emt 0:00:56]} f5 {[%emt 0:00:00]} 33. exf5 {[%emt 0:03:06]} gxf5 {[%emt 0:00:00]} 34. Kg2 {[%emt 0:00:31]} Rf8 {[%emt 0:00:45]} 35. Rc4 {[%emt 0:03:46]} Bxf2 {[%emt 0:04:31]} 36. Kxf2 Rxb5 {[%emt 0:00:03]} 37. Rxd6 {[%emt 0:00:17]} Ra8 {[%emt 0:00:40]} 38. Kf3 {[%emt 0:03:01]} Rb7 {[%emt 0:01:06]} 39. Kf4 {[%emt 0:02:33]} Rxa2 {[%emt 0:01:04]} 40. Kxf5 {[%emt 0:02:43]} Rf7+ {[%emt 0:01:30]} 41. Rf6 {[%emt 0:01:04]} 1-0

[Event "Hetauda Cup Asian Open 2023"]
[Site "Hetauda"]
[Date "2023.12.02"]
[Round "8.1"]
[White "Ahmed, Sheikh Nasir"]
[Black "Subhayan Kundu"]
[Result "1/2-1/2"]
[ECO "A13"]
[WhiteElo "2193"]
[BlackElo "2393"]
[Annotator "RC"]
[PlyCount "40"]
[EventDate "2023.11.28"]
[EventType "swiss"]
[EventCountry "NEP"]
[SourceTitle "playchess.com"]
[Source "ChessBase"]
[SourceQuality "1"]
[TimeControl "5400+30"]

1. c4 {[%emt 0:00:04]} e6 {[%emt 0:04:03]} 2. g3 {[%emt 0:00:37]} d5 {[%emt 0:00:11]} 3. Bg2 {[%emt 0:00:08]} d4 {[%emt 0:00:16]} 4. Nf3 {[%emt 0:00:56]} Nc6 {[%emt 0:00:23]} 5. d3 {[%emt 0:00:18]} Nf6 {[%emt 0:00:36]} 6. O-O {[%emt 0:00:18]} Bc5 {[%emt 1:28:01]} 7. e3 {[%emt 1:31:39]} O-O {[%emt 0:00:00]} 8. exd4 {[%emt 0:00:00]} Nxd4 {[%emt 0:01:00]} 9. Nc3 {[%emt 0:00:00]} Nxf3+ {[%emt 0:00:30]} 10. Qxf3 {[%emt 0:00:00]} c6 {[%emt 0:00:00]} 11. Rb1 {[%emt 0:00:00]} e5 {[%emt 0:00:00]} 12. h3 {[%emt 0:00:00]} a5 {[%emt 0:00:00]} 13. Be3 {[%emt 0:00:00]} Qe7 {[%emt 0:00:00]} 14. Rfe1 {[%emt 0:00:00]} Be6 {[%emt 0:00:00]} 15. Bxc5 {[%emt 0:00:00]} Qxc5 {[%emt 0:00:00]} 16. Qe3 {[%emt 0:00:00]} Nd7 {[%emt 0:00:00]} 17. Rbd1 {[%emt 0:00:00]} Rfd8 {[%emt 0:00:00]} 18. b3 {[%emt 0:00:00]} Qd4 {[%emt 0:00:00]} 19. Ne2 {[%emt 0:00:00]} Qxe3 {[%emt 0:00:00]} 20. fxe3 {[%emt 0:00:00]} a4 {[%emt 0:00:00]} 1/2-1/2